[Event "Szansa Chess Open 2022"]
[Site "Warsaw"]
[Date "2022.09.18"]
[Round "9.1"]
[White "Psyk, Radoslaw"]
[Black "Lewicki, Miroslaw"]
[Result "1/2-1/2"]
[ECO "B50"]
[WhiteElo "2404"]
[BlackElo "2336"]
[Annotator "ChessBase"]
[PlyCount "137"]
[EventDate "2022.09.17"]
[EventCountry "POL"]
[SourceTitle "playchess.com"]
[Source "ChessBase"]
[SourceQuality "1"]
[TimeControl "900+10"]

1. e4 {[%emt 0:00:02]} c5 {[%emt 0:00:01]} 2. Nf3 {[%emt 0:00:14]} d6 {[%emt 0:00:02]} 3. c3 {[%emt 0:00:08]} Nf6 {[%emt 0:00:04]} 4. Be2 {[%emt 0:00:03]} g6 {[%emt 0:00:09]} 5. O-O {[%emt 0:00:06]} Bg7 {[%emt 0:00:03]} 6. Bb5+ {[%emt 0:00:04]} Bd7 {[%emt 0:00:05]} 7. Bxd7+ {[%emt 0:00:04]} Nbxd7 {[%emt 0:00:03]} 8. Re1 {[%emt 0:00:02]} O-O {[%emt 0:00:04]} 9. d4 {[%emt 0:00:08]} e5 {[%emt 0:00:03]} 10. dxe5 {[%emt 0:01:28]} dxe5 {[%emt 0:00:04]} 11. Qe2 {[%emt 0:00:19]} Qc7 {[%emt 0:00:15]} 12. c4 {[%emt 0:01:13]} h6 {[%emt 0:00:43]} 13. Nc3 {[%emt 0:00:07]} Rfe8 {[%emt 0:00:49]} 14. Nd5 {[%emt 0:02:20]} Nxd5 {[%emt 0:00:02]} 15. cxd5 {[%emt 0:00:02]} c4 {[%emt 0:00:53]} 16. a4 {[%emt 0:01:20]} Rac8 {[%emt 0:00:27]} 17. Be3 {[%emt 0:00:24]} a6 {[%emt 0:02:14]} 18. Rec1 {[%emt 0:01:41]} b5 {[%emt 0:00:15]} 19. axb5 {[%emt 0:01:02]} axb5 {[%emt 0:00:02]} 20. Ra7 {[%emt 0:01:30]} Qd6 {[%emt 0:00:03]} 21. Rca1 {[%emt 0:00:40]} Nc5 {[%emt 0:00:18]} 22. Nd2 {[%emt 0:00:06]} Bf8 {[%emt 0:00:36]} 23. Qf3 {[%emt 0:01:02]} Re7 {[%emt 0:00:33]} 24. Qh3 {[%emt 0:00:29]} Rxa7 {[%emt 0:00:43]} 25. Rxa7 {[%emt 0:00:01]} Qb8 {[%emt 0:00:03]} 26. Ra5 {[%emt 0:00:21]} Rc7 {[%emt 0:04:38]} 27. g3 {[%emt 0:03:45]} Nd3 {[%emt 0:00:31]} 28. Ra6 {[%emt 0:00:39]} Qc8 {[%emt 0:01:23]} 29. Qxc8 {[%emt 0:00:14]} Rxc8 {[%emt 0:00:01]} 30. Rb6 {[%emt 0:00:25]} b4 {[%emt 0:00:03]} 31. d6 {[%emt 0:00:00]} c3 {[%emt 0:00:23]} 32. bxc3 {[%emt 0:00:02]} bxc3 {[%emt 0:00:02]} 33. Nb3 {[%emt 0:00:14]} Rd8 {[%emt 0:02:43]} 34. Rc6 {[%emt 0:00:04]} Rxd6 {[%emt 0:00:19]} 35. Rxc3 {[%emt 0:00:10]} Rd8 {[%emt 0:00:15]} 36. Bb6 {[%emt 0:00:15]} Rb8 {[%emt 0:00:24]} 37. Bc7 {[%emt 0:00:14]} Rb7 {[%emt 0:00:15]} 38. Rxd3 {[%emt 0:00:16]} Rxc7 {[%emt 0:00:02]} 39. Kg2 {[%emt 0:00:02]} Kg7 {[%emt 0:00:06]} 40. h4 {[%emt 0:00:02]} f5 {[%emt 0:00:15]} 41. Nd2 {[%emt 0:00:21]} Rc2 {[%emt 0:00:12]} 42. Rd7+ {[%emt 0:00:13]} Kf6 {[%emt 0:00:03]} 43. Kf3 {[%emt 0:00:12]} Bb4 {[%emt 0:00:14]} 44. Ke3 {[%emt 0:00:14]} f4+ {[%emt 0:00:17]} 45. gxf4 {[%emt 0:00:08]} exf4+ {[%emt 0:00:12]} 46. Ke2 {[%emt 0:00:04]} Ke6 {[%emt 0:01:12]} 47. Rd3 {[%emt 0:00:01]} g5 {[%emt 0:00:14]} 48. hxg5 {[%emt 0:00:03]} h5 {[%emt 0:00:01]} 49. Kd1 {[%emt 0:00:22]} Ra2 {[%emt 0:00:35]} 50. Rd4 {[%emt 0:00:22]} Bc5 {[%emt 0:00:10]} 51. Rc4 {[%emt 0:00:10]} Bxf2 {[%emt 0:00:03]} 52. Nf3 {[%emt 0:00:06]} Bg3 53. Rc6+ {[%emt 0:00:04]} Ke7 {[%emt 0:00:35]} 54. g6 {[%emt 0:00:17]} Ra3 {[%emt 0:00:10]} 55. Ne5 {[%emt 0:00:13]} f3 {[%emt 0:00:06]} 56. g7 {[%emt 0:00:08]} f2 {[%emt 0:00:10]} 57. Rc7+ {[%emt 0:00:09]} Kd6 {[%emt 0:00:09]} 58. Rf7 {[%emt 0:00:01]} Ra8 {[%emt 0:00:18]} 59. Ng6 {[%emt 0:00:06]} Rg8 {[%emt 0:00:13]} 60. Ke2 {[%emt 0:00:01]} Ke6 {[%emt 0:00:02]} 61. Rb7 {[%emt 0:00:33]} h4 {[%emt 0:00:07]} 62. e5 {[%emt 0:00:13]} h3 {[%emt 0:00:12]} 63. Rb6+ {[%emt 0:00:09]} Kf7 {[%emt 0:00:04]} 64. Rf6+ {[%emt 0:00:06]} Kxg7 {[%emt 0:00:06]} 65. Ne7 {[%emt 0:00:04]} Bxe5 {[%emt 0:00:28]} 66. Nxg8 {[%emt 0:00:17]} Bxf6 {[%emt 0:00:12]} 67. Nxf6 {[%emt 0:00:02]} h2 {[%emt 0:00:01]} 68. Nh5+ {[%emt 0:00:01]} Kh6 {[%emt 0:00:05]} 69. Ng3 {[%emt 0:00:01]} 1/2-1/2

[Event "Szansa Chess Open 2022"]
[Site "Warsaw"]
[Date "2022.09.18"]
[Round "9.2"]
[White "Jakubowski, Krzysztof"]
[Black "Nasuta, Grzegorz"]
[Result "1-0"]
[ECO "C58"]
[WhiteElo "2466"]
[BlackElo "2531"]
[Annotator "ChessBase"]
[PlyCount "99"]
[EventDate "2022.09.17"]
[EventCountry "POL"]
[SourceTitle "playchess.com"]
[Source "ChessBase"]
[SourceQuality "1"]
[TimeControl "900+10"]

1. e4 {[%emt 0:00:02]} e5 {[%emt 0:00:10]} 2. Nf3 {[%emt 0:00:03]} Nc6 {[%emt 0:00:01]} 3. Bc4 {[%emt 0:00:03]} Nf6 {[%emt 0:00:02]} 4. Ng5 {[%emt 0:00:36]} d5 {[%emt 0:00:01]} 5. exd5 {[%emt 0:00:01]} Na5 {[%emt 0:00:01]} 6. Bb5+ {[%emt 0:00:02]} c6 {[%emt 0:00:00]} 7. dxc6 {[%emt 0:00:01]} bxc6 {[%emt 0:00:01]} 8. Bd3 {[%emt 0:00:02]} Nd5 {[%emt 0:00:08]} 9. h4 {[%emt 0:00:02]} h6 {[%emt 0:00:09]} 10. Qh5 {[%emt 0:00:18]} Qf6 {[%emt 0:00:01]} 11. Nh7 {[%emt 0:00:02]} Rxh7 {[%emt 0:00:04]} 12. Bxh7 {[%emt 0:00:02]} g6 {[%emt 0:00:05]} 13. Qe2 {[%emt 0:00:02]} Nf4 {[%emt 0:02:11]} 14. Qf3 {[%emt 0:00:04]} Bb7 {[%emt 0:02:24]} 15. Nc3 {[%emt 0:01:15]} Qg7 {[%emt 0:01:03]} 16. Ne4 {[%emt 0:02:51]} f5 {[%emt 0:01:56]} 17. d4 {[%emt 0:04:48]} fxe4 {[%emt 0:06:16]} 18. Qxe4 {[%emt 0:00:15]} c5 {[%emt 0:00:50]} 19. Qxe5+ {[%emt 0:01:37]} Qxe5+ {[%emt 0:00:02]} 20. dxe5 {[%emt 0:00:02]} Nxg2+ {[%emt 0:00:01]} 21. Ke2 {[%emt 0:00:02]} Kf7 {[%emt 0:01:20]} 22. h5 {[%emt 0:00:11]} g5 {[%emt 0:00:01]} 23. Bg6+ {[%emt 0:01:35]} Ke6 {[%emt 0:00:25]} 24. Rh3 {[%emt 0:00:02]} Nc4 {[%emt 0:00:31]} 25. Rb3 {[%emt 0:00:50]} Bd5 {[%emt 0:00:15]} 26. Rd3 {[%emt 0:01:06]} Nxe5 {[%emt 0:00:02]} 27. Bf5+ {[%emt 0:00:11]} Kd6 {[%emt 0:00:50]} 28. Ra3 {[%emt 0:01:01]} Re8 {[%emt 0:00:35]} 29. Be3 {[%emt 0:00:59]} Nc4 {[%emt 0:00:12]} 30. Ra6+ {[%emt 0:00:17]} Kc7 {[%emt 0:00:01]} 31. Bg6 {[%emt 0:00:30]} Re5 {[%emt 0:00:22]} 32. Rxa7+ {[%emt 0:00:21]} Kb6 {[%emt 0:00:00]} 33. Rd7 {[%emt 0:00:19]} Ncxe3 {[%emt 0:00:13]} 34. fxe3 {[%emt 0:00:04]} Nxe3 {[%emt 0:00:01]} 35. Kd3 {[%emt 0:00:29]} Bc6 {[%emt 0:00:16]} 36. Rf7 {[%emt 0:00:07]} Bd6 {[%emt 0:00:18]} 37. c4 {[%emt 0:00:26]} Ng2 {[%emt 0:00:04]} 38. a4 {[%emt 0:00:18]} Nf4+ {[%emt 0:00:03]} 39. Kc3 {[%emt 0:00:07]} Re3+ {[%emt 0:00:16]} 40. Kd2 {[%emt 0:00:03]} Re2+ {[%emt 0:00:01]} 41. Kd1 {[%emt 0:00:09]} Rh2 {[%emt 0:00:26]} 42. a5+ {[%emt 0:00:08]} Ka6 {[%emt 0:00:01]} 43. Ra3 {[%emt 0:00:09]} Rh1+ {[%emt 0:00:16]} 44. Kc2 {[%emt 0:00:18]} Rh2+ {[%emt 0:00:04]} 45. Kb1 {[%emt 0:00:22]} Be5 {[%emt 0:00:11]} 46. Rb3 {[%emt 0:00:02]} Ba4 {[%emt 0:00:27]} 47. Rbb7 {[%emt 0:00:24]} Kxa5 {[%emt 0:00:10]} 48. Ra7+ {[%emt 0:00:05]} Kb6 {[%emt 0:00:09]} 49. Rfb7+ {[%emt 0:00:02]} Kc6 {[%emt 0:00:01]} 50. Be4+ {[%emt 0:00:02]} 1-0

[Event "Szansa Chess Open 2022"]
[Site "Warsaw"]
[Date "2022.09.18"]
[Round "9.3"]
[White "Siekanska, Zuzanna"]
[Black "Gumularz, Szymon"]
[Result "0-1"]
[ECO "A40"]
[WhiteElo "1898"]
[BlackElo "2532"]
[Annotator "ChessBase"]
[PlyCount "136"]
[EventDate "2022.09.17"]
[EventCountry "POL"]
[SourceTitle "playchess.com"]
[Source "ChessBase"]
[SourceQuality "1"]
[TimeControl "900+10"]

1. d4 {[%emt 0:00:01]} Nc6 {[%emt 0:00:01]} 2. c4 {[%emt 0:00:02]} e5 {[%emt 0:00:01]} 3. d5 {[%emt 0:00:25]} Nce7 {[%emt 0:00:05]} 4. e4 {[%emt 0:00:06]} Nf6 {[%emt 0:00:03]} 5. Nc3 {[%emt 0:00:01]} Ng6 {[%emt 0:00:02]} 6. Nf3 {[%emt 0:00:10]} Bb4 {[%emt 0:00:12]} 7. Bd3 {[%emt 0:00:33]} Bxc3+ {[%emt 0:00:02]} 8. bxc3 {[%emt 0:00:02]} d6 {[%emt 0:00:02]} 9. O-O {[%emt 0:00:35]} O-O {[%emt 0:00:02]} 10. a4 {[%emt 0:00:07]} a5 {[%emt 0:00:02]} 11. c5 {[%emt 0:01:44]} dxc5 {[%emt 0:00:03]} 12. c4 {[%emt 0:00:02]} Ne8 {[%emt 0:00:09]} 13. Bb2 {[%emt 0:01:01]} f6 {[%emt 0:00:02]} 14. g3 {[%emt 0:00:15]} Nd6 {[%emt 0:00:02]} 15. Nd2 {[%emt 0:00:18]} b6 {[%emt 0:00:09]} 16. f4 {[%emt 0:00:19]} Re8 {[%emt 0:00:05]} 17. f5 {[%emt 0:00:09]} Nf8 {[%emt 0:00:03]} 18. g4 {[%emt 0:00:17]} c6 {[%emt 0:00:03]} 19. Qc2 {[%emt 0:00:27]} cxd5 {[%emt 0:00:03]} 20. exd5 {[%emt 0:00:07]} Ra7 {[%emt 0:00:11]} 21. Ne4 {[%emt 0:00:08]} Nxe4 {[%emt 0:00:02]} 22. Bxe4 {[%emt 0:00:02]} Nd7 {[%emt 0:00:17]} 23. Kh1 {[%emt 0:00:16]} Ba6 {[%emt 0:00:15]} 24. Ra3 {[%emt 0:00:16]} h6 {[%emt 0:00:03]} 25. h4 {[%emt 0:00:24]} Nf8 {[%emt 0:00:02]} 26. Rg3 {[%emt 0:00:20]} Nh7 {[%emt 0:00:02]} 27. Rfg1 {[%emt 0:00:21]} Rf8 {[%emt 0:00:02]} 28. Bc1 {[%emt 0:00:20]} Bc8 {[%emt 0:00:06]} 29. Qe2 {[%emt 0:01:53]} Qd6 {[%emt 0:00:10]} 30. Kg2 {[%emt 0:00:33]} Bd7 {[%emt 0:00:01]} 31. Qc2 {[%emt 0:00:08]} Be8 {[%emt 0:00:21]} 32. Qb3 {[%emt 0:00:42]} Rb7 {[%emt 0:00:08]} 33. Be3 {[%emt 0:00:40]} Rff7 {[%emt 0:00:03]} 34. Kh1 {[%emt 0:00:10]} Kf8 {[%emt 0:00:02]} 35. Rb1 {[%emt 0:00:36]} Ke7 {[%emt 0:00:05]} 36. Rg2 {[%emt 0:00:18]} Kd8 {[%emt 0:00:02]} 37. Rgb2 {[%emt 0:00:13]} Kc8 {[%emt 0:00:02]} 38. Qd1 {[%emt 0:00:36]} Kb8 {[%emt 0:00:05]} 39. Bf2 {[%emt 0:00:29]} Ka7 {[%emt 0:00:02]} 40. Be3 {[%emt 0:00:03]} Nf8 {[%emt 0:00:08]} 41. Bf2 {[%emt 0:00:27]} Nd7 {[%emt 0:00:02]} 42. Be3 {[%emt 0:00:18]} Nb8 {[%emt 0:00:01]} 43. Rg2 {[%emt 0:00:13]} Na6 {[%emt 0:00:02]} 44. Qb3 {[%emt 0:00:39]} Bd7 {[%emt 0:00:04]} 45. Rf1 {[%emt 0:00:13]} Rf8 {[%emt 0:00:04]} 46. Kg1 {[%emt 0:00:50]} Rbb8 {[%emt 0:00:01]} 47. Kf2 {[%emt 0:00:09]} Nc7 {[%emt 0:00:07]} 48. Ke2 {[%emt 0:00:08]} Ne8 {[%emt 0:00:05]} 49. Kd2 {[%emt 0:00:25]} Qe7 {[%emt 0:00:02]} 50. Bg1 {[%emt 0:00:55]} Nd6 {[%emt 0:00:01]} 51. Re2 {[%emt 0:00:04]} h5 {[%emt 0:00:06]} 52. gxh5 {[%emt 0:00:24]} Rh8 {[%emt 0:00:02]} 53. Qc3 {[%emt 0:00:33]} Ka6 {[%emt 0:00:12]} 54. Rb1 {[%emt 0:01:10]} Nxe4+ {[%emt 0:00:04]} 55. Rxe4 {[%emt 0:00:06]} Bxf5 {[%emt 0:00:01]} 56. Ree1 {[%emt 0:00:46]} Bxb1 {[%emt 0:00:02]} 57. Rxb1 {[%emt 0:00:01]} Rxh5 {[%emt 0:00:11]} 58. Rb5 {[%emt 0:00:16]} Qc7 {[%emt 0:00:03]} 59. Qb3 {[%emt 0:00:04]} Ka7 {[%emt 0:00:07]} 60. Bf2 {[%emt 0:00:37]} Rhh8 {[%emt 0:00:17]} 61. Qc3 {[%emt 0:00:11]} Ka6 {[%emt 0:00:09]} 62. Kc1 {[%emt 0:00:06]} f5 {[%emt 0:00:03]} 63. d6 {[%emt 0:00:10]} Qxd6 {[%emt 0:00:28]} 64. Bxc5 {[%emt 0:00:09]} Qc6 {[%emt 0:00:04]} 65. Bf2 {[%emt 0:00:27]} Rhd8 {[%emt 0:00:56]} 66. c5 {[%emt 0:00:19]} Qe4 {[%emt 0:00:36]} 67. cxb6 {[%emt 0:00:47]} Qxa4 {[%emt 0:00:36]} 68. Rb3 {[%emt 0:00:41]} Rbc8 {[%emt 0:00:06]} 0-1

[Event "Szansa Chess Open 2022"]
[Site "Warsaw"]
[Date "2022.09.18"]
[Round "9.4"]
[White "Kokoszczynski, Jan"]
[Black "Kozak, Antoni"]
[Result "1/2-1/2"]
[ECO "D31"]
[WhiteElo "2313"]
[BlackElo "2434"]
[Annotator "ChessBase"]
[PlyCount "175"]
[EventDate "2022.09.17"]
[EventCountry "POL"]
[SourceTitle "playchess.com"]
[Source "ChessBase"]
[SourceQuality "1"]
[TimeControl "900+10"]

1. d4 {[%emt 0:00:01]} d5 {[%emt 0:00:01]} 2. c4 {[%emt 0:00:02]} e6 {[%emt 0:00:01]} 3. Nc3 {[%emt 0:00:03]} c6 {[%emt 0:00:01]} 4. e4 {[%emt 0:00:05]} dxe4 {[%emt 0:00:01]} 5. Nxe4 {[%emt 0:00:01]} Bb4+ {[%emt 0:00:01]} 6. Bd2 {[%emt 0:00:08]} Qxd4 {[%emt 0:00:02]} 7. Bxb4 {[%emt 0:00:01]} Qxe4+ {[%emt 0:00:01]} 8. Be2 {[%emt 0:00:04]} Na6 {[%emt 0:00:01]} 9. Bd6 {[%emt 0:00:02]} Qxg2 {[%emt 0:00:02]} 10. Qd2 {[%emt 0:01:02]} e5 {[%emt 0:00:01]} 11. Bxe5 {[%emt 0:01:11]} Bf5 {[%emt 0:00:01]} 12. Bf3 {[%emt 0:00:08]} Qg6 {[%emt 0:00:04]} 13. O-O-O {[%emt 0:00:07]} Nc5 {[%emt 0:00:25]} 14. Qe3 {[%emt 0:00:40]} Bb1 {[%emt 0:00:01]} 15. Bd6+ {[%emt 0:02:20]} Ne6 {[%emt 0:00:15]} 16. Rd2 {[%emt 0:02:24]} Nf6 17. b3 {[%emt 0:00:59]} O-O-O {[%emt 0:04:35]} 18. Ne2 {[%emt 0:02:23]} Rxd6 {[%emt 0:01:11]} 19. Rg1 {[%emt 0:00:01]} Rd3 {[%emt 0:00:15]} 20. Rxg6 {[%emt 0:00:57]} Rxe3 {[%emt 0:00:01]} 21. Rxf6 {[%emt 0:00:09]} Rxe2 {[%emt 0:00:02]} 22. Rxe2 {[%emt 0:00:12]} gxf6 {[%emt 0:00:04]} 23. Kxb1 {[%emt 0:00:02]} Nd4 {[%emt 0:00:09]} 24. Re3 {[%emt 0:00:30]} Rg8 {[%emt 0:00:23]} 25. Kb2 {[%emt 0:01:00]} Rg1 {[%emt 0:00:31]} 26. Kc3 {[%emt 0:00:46]} Ne6 {[%emt 0:00:15]} 27. Be4 {[%emt 0:00:09]} h5 {[%emt 0:00:21]} 28. Rh3 {[%emt 0:01:14]} Rg5 {[%emt 0:00:23]} 29. Rf3 {[%emt 0:00:12]} Rg4 {[%emt 0:00:32]} 30. Bf5 {[%emt 0:00:22]} Rh4 {[%emt 0:00:01]} 31. Bxe6+ {[%emt 0:00:45]} fxe6 {[%emt 0:00:01]} 32. Rxf6 {[%emt 0:00:00]} Rxh2 {[%emt 0:00:01]} 33. Kd4 {[%emt 0:01:04]} Rh1 {[%emt 0:00:15]} 34. Ke5 {[%emt 0:00:10]} Kc7 35. Kxe6 {[%emt 0:00:49]} a5 {[%emt 0:00:20]} 36. c5 {[%emt 0:00:04]} Re1+ {[%emt 0:00:05]} 37. Kf5 {[%emt 0:00:02]} Rc1 {[%emt 0:00:01]} 38. Rf7+ {[%emt 0:00:02]} Kb8 {[%emt 0:00:01]} 39. f4 {[%emt 0:00:11]} Rxc5+ {[%emt 0:00:36]} 40. Ke6 {[%emt 0:00:11]} Rc2 {[%emt 0:00:47]} 41. Rh7 {[%emt 0:00:00]} Re2+ {[%emt 0:00:06]} 42. Kd6 {[%emt 0:00:20]} Rd2+ {[%emt 0:00:11]} 43. Ke6 {[%emt 0:00:01]} Re2+ {[%emt 0:00:01]} 44. Kd6 {[%emt 0:00:01]} Rf2 {[%emt 0:00:30]} 45. Rxh5 {[%emt 0:01:17]} Rxf4 {[%emt 0:00:02]} 46. Rxa5 {[%emt 0:00:01]} b6 {[%emt 0:00:19]} 47. Re5 {[%emt 0:00:10]} c5 {[%emt 0:00:49]} 48. Kc6 {[%emt 0:00:09]} Ka7 {[%emt 0:00:01]} 49. Re8 {[%emt 0:00:17]} Rf2 {[%emt 0:00:15]} 50. Kb5 {[%emt 0:00:16]} Rxa2 {[%emt 0:00:19]} 51. Re7+ {[%emt 0:00:02]} Kb8 {[%emt 0:00:01]} 52. Kxb6 {[%emt 0:00:04]} Kc8 {[%emt 0:00:01]} 53. Kxc5 {[%emt 0:00:05]} Ra6 {[%emt 0:00:04]} 54. b4 {[%emt 0:00:08]} Rh6 {[%emt 0:00:02]} 55. b5 {[%emt 0:00:06]} Kb8 {[%emt 0:00:01]} 56. Rd7 {[%emt 0:00:01]} Rh8 {[%emt 0:00:01]} 57. Kb6 {[%emt 0:00:06]} Rh6+ {[%emt 0:00:01]} 58. Ka5 {[%emt 0:00:01]} Rg6 {[%emt 0:00:01]} 59. Kb4 {[%emt 0:00:23]} Rh6 {[%emt 0:00:01]} 60. Kc5 {[%emt 0:00:01]} Rg6 {[%emt 0:00:01]} 61. Re7 {[%emt 0:00:21]} Rg8 {[%emt 0:00:01]} 62. Re6 {[%emt 0:00:02]} Rh8 {[%emt 0:00:02]} 63. Kc6 {[%emt 0:00:02]} Rc8+ {[%emt 0:00:01]} 64. Kb6 {[%emt 0:00:01]} Rh8 {[%emt 0:00:01]} 65. Ka6 {[%emt 0:00:05]} Ka8 {[%emt 0:00:01]} 66. Rg6 {[%emt 0:00:11]} Kb8 {[%emt 0:00:01]} 67. Rf6 {[%emt 0:00:20]} Ka8 {[%emt 0:00:00]} 68. b6 {[%emt 0:00:04]} Kb8 {[%emt 0:00:01]} 69. Rf7 {[%emt 0:00:06]} Rg8 {[%emt 0:00:01]} 70. Rb7+ {[%emt 0:00:05]} Ka8 {[%emt 0:00:01]} 71. Ra7+ {[%emt 0:00:01]} Kb8 {[%emt 0:00:01]} 72. Rh7 {[%emt 0:00:05]} Ka8 {[%emt 0:00:01]} 73. Rf7 {[%emt 0:00:06]} Kb8 {[%emt 0:00:01]} 74. Rc7 {[%emt 0:00:09]} Rh8 {[%emt 0:00:00]} 75. Rd7 {[%emt 0:00:05]} Rg8 {[%emt 0:00:02]} 76. Rd6 {[%emt 0:00:06]} Rh8 {[%emt 0:00:01]} 77. Rc6 {[%emt 0:00:04]} Rh1 {[%emt 0:00:12]} 78. Rc4 {[%emt 0:00:04]} Ra1+ {[%emt 0:00:02]} 79. Kb5 {[%emt 0:00:00]} Rb1+ {[%emt 0:00:01]} 80. Rb4 {[%emt 0:00:06]} Rxb4+ {[%emt 0:00:02]} 81. Kxb4 {[%emt 0:00:00]} Kb7 {[%emt 0:00:01]} 82. Kb5 {[%emt 0:00:01]} Kb8 {[%emt 0:00:01]} 83. Kc6 {[%emt 0:00:01]} Kc8 {[%emt 0:00:00]} 84. Kd6 {[%emt 0:00:01]} Kb7 {[%emt 0:00:01]} 85. Kc5 {[%emt 0:00:00]} Kb8 {[%emt 0:00:00]} 86. Kc6 {[%emt 0:00:01]} Kc8 {[%emt 0:00:01]} 87. b7+ {[%emt 0:00:00]} Kb8 {[%emt 0:00:00]} 88. Kb6 {[%emt 0:00:01]} 1/2-1/2

[Event "Szansa Chess Open 2022"]
[Site "Warsaw"]
[Date "2022.09.18"]
[Round "9.5"]
[White "Golecki, Jan"]
[Black "Kosakowski, Jakub"]
[Result "0-1"]
[ECO "B13"]
[WhiteElo "2193"]
[BlackElo "2457"]
[Annotator "ChessBase"]
[PlyCount "110"]
[EventDate "2022.09.17"]
[EventCountry "POL"]
[SourceTitle "playchess.com"]
[Source "ChessBase"]
[SourceQuality "1"]
[TimeControl "900+10"]

1. e4 {[%emt 0:00:14]} c6 {[%emt 0:00:06]} 2. d4 {[%emt 0:00:02]} d5 {[%emt 0:00:02]} 3. exd5 {[%emt 0:00:00]} cxd5 {[%emt 0:00:02]} 4. Bd3 {[%emt 0:00:01]} Nc6 {[%emt 0:00:02]} 5. c3 {[%emt 0:00:01]} Qc7 {[%emt 0:00:02]} 6. Ne2 {[%emt 0:00:01]} Bg4 {[%emt 0:00:05]} 7. O-O {[%emt 0:00:02]} e6 {[%emt 0:00:03]} 8. f3 {[%emt 0:00:01]} Bh5 {[%emt 0:00:08]} 9. Bf4 {[%emt 0:00:01]} Bd6 {[%emt 0:00:21]} 10. Qd2 {[%emt 0:00:01]} Nge7 {[%emt 0:01:33]} 11. Na3 {[%emt 0:00:02]} a6 {[%emt 0:00:11]} 12. c4 {[%emt 0:00:43]} dxc4 {[%emt 0:00:41]} 13. Nxc4 {[%emt 0:00:02]} Bxf4 {[%emt 0:00:09]} 14. Qxf4 {[%emt 0:00:14]} O-O-O {[%emt 0:00:56]} 15. Rac1 {[%emt 0:01:04]} Qxf4 {[%emt 0:01:27]} 16. Nxf4 {[%emt 0:00:02]} Rxd4 {[%emt 0:04:29]} 17. Be4 {[%emt 0:00:00]} Bg6 {[%emt 0:01:19]} 18. Nxg6 {[%emt 0:00:02]} hxg6 {[%emt 0:00:33]} 19. Ne5 {[%emt 0:00:27]} f6 {[%emt 0:00:11]} 20. Nxc6 {[%emt 0:00:14]} bxc6 {[%emt 0:00:03]} 21. Bxc6 {[%emt 0:00:01]} Kb8 {[%emt 0:00:09]} 22. Rc3 {[%emt 0:00:58]} Rhd8 {[%emt 0:00:16]} 23. Rb3+ {[%emt 0:01:35]} Kc7 {[%emt 0:00:10]} 24. Be4 {[%emt 0:00:00]} f5 {[%emt 0:00:22]} 25. Rc1+ {[%emt 0:01:39]} Kd6 {[%emt 0:00:02]} 26. Rb6+ {[%emt 0:00:14]} Ke5 {[%emt 0:00:10]} 27. Bc2 {[%emt 0:00:01]} R8d6 {[%emt 0:00:53]} 28. Rb7 {[%emt 0:00:13]} Nd5 {[%emt 0:00:05]} 29. Bb3 {[%emt 0:00:09]} Ne3 {[%emt 0:00:35]} 30. g3 {[%emt 0:01:12]} f4 {[%emt 0:01:07]} 31. Rxg7 {[%emt 0:00:19]} fxg3 {[%emt 0:01:25]} 32. hxg3 {[%emt 0:00:15]} Kf6 {[%emt 0:00:03]} 33. Rcc7 {[%emt 0:03:47]} Rd2 {[%emt 0:00:11]} 34. Rcf7+ {[%emt 0:00:11]} Kg5 {[%emt 0:00:09]} 35. Rh7 {[%emt 0:00:56]} Rg2+ {[%emt 0:00:57]} 36. Kh1 {[%emt 0:00:01]} Rxb2 {[%emt 0:00:09]} 37. Rd7 {[%emt 0:00:52]} Rxd7 {[%emt 0:00:51]} 38. Rxd7 {[%emt 0:00:01]} Nf5 {[%emt 0:00:02]} 39. Bxe6 {[%emt 0:00:52]} Nxg3+ {[%emt 0:00:02]} 40. Kg1 {[%emt 0:00:01]} Kf4 {[%emt 0:01:32]} 41. Bd5 {[%emt 0:00:28]} Ne2+ {[%emt 0:00:11]} 42. Kf1 {[%emt 0:00:09]} Kg3 {[%emt 0:00:13]} 43. Be4 {[%emt 0:01:39]} Nf4 {[%emt 0:00:09]} 44. Ke1 {[%emt 0:00:08]} Rxa2 {[%emt 0:00:11]} 45. Rg7 {[%emt 0:01:04]} Ra5 {[%emt 0:00:02]} 46. Kd2 {[%emt 0:00:09]} Kf2 {[%emt 0:00:08]} 47. Kc3 {[%emt 0:00:12]} g5 {[%emt 0:00:02]} 48. Kb4 {[%emt 0:00:08]} Rb5+ 49. Kc4 {[%emt 0:00:02]} Re5 {[%emt 0:00:39]} 50. Rg8 {[%emt 0:01:39]} Ke3 {[%emt 0:00:05]} 51. Bc6 {[%emt 0:00:27]} a5 {[%emt 0:00:09]} 52. Ra8 {[%emt 0:00:54]} Ne6 {[%emt 0:00:06]} 53. Bd7 {[%emt 0:00:15]} Kxf3 {[%emt 0:00:12]} 54. Bc6+ {[%emt 0:00:07]} Ke3 {[%emt 0:00:04]} 55. Bd5 {[%emt 0:00:04]} Rxd5 {[%emt 0:00:02]} 0-1

[Event "Szansa Chess Open 2022"]
[Site "Warsaw"]
[Date "2022.09.18"]
[Round "9.6"]
[White "Nguyen, Piotr"]
[Black "Kowalski, Igor"]
[Result "1/2-1/2"]
[ECO "A11"]
[WhiteElo "2421"]
[BlackElo "2344"]
[Annotator "ChessBase"]
[PlyCount "106"]
[EventDate "2022.09.17"]
[EventCountry "POL"]
[SourceTitle "playchess.com"]
[Source "ChessBase"]
[SourceQuality "1"]
[TimeControl "900+10"]

1. c4 {[%emt 0:00:01]} c6 {[%emt 0:00:05]} 2. Nf3 {[%emt 0:00:06]} d5 {[%emt 0:00:01]} 3. g3 {[%emt 0:00:02]} g6 {[%emt 0:00:04]} 4. Bg2 {[%emt 0:00:09]} Bg7 {[%emt 0:00:01]} 5. Qa4 {[%emt 0:00:05]} dxc4 {[%emt 0:00:12]} 6. Qxc4 {[%emt 0:00:02]} e5 {[%emt 0:00:01]} 7. Nc3 {[%emt 0:00:36]} Ne7 {[%emt 0:00:13]} 8. d3 {[%emt 0:00:17]} O-O {[%emt 0:00:11]} 9. O-O {[%emt 0:00:27]} Be6 {[%emt 0:00:12]} 10. Qh4 {[%emt 0:00:13]} Nf5 {[%emt 0:00:24]} 11. Qxd8 {[%emt 0:00:02]} Rxd8 {[%emt 0:00:01]} 12. Ng5 {[%emt 0:00:24]} Bc8 {[%emt 0:00:15]} 13. b4 {[%emt 0:00:22]} Nd4 {[%emt 0:01:00]} 14. Nge4 {[%emt 0:00:41]} Bg4 {[%emt 0:01:17]} 15. f3 {[%emt 0:01:24]} Be6 {[%emt 0:00:39]} 16. Bg5 {[%emt 0:00:28]} Rf8 {[%emt 0:00:02]} 17. Nf6+ {[%emt 0:01:47]} Kh8 {[%emt 0:00:23]} 18. Nfe4 {[%emt 0:00:09]} Nd7 {[%emt 0:00:23]} 19. Nd6 {[%emt 0:01:46]} Rab8 {[%emt 0:03:14]} 20. Rfc1 {[%emt 0:00:36]} f6 {[%emt 0:00:42]} 21. Bd2 {[%emt 0:01:03]} Rfd8 {[%emt 0:00:05]} 22. Kf1 {[%emt 0:00:34]} Bf8 {[%emt 0:00:25]} 23. Nde4 {[%emt 0:00:47]} Bxb4 {[%emt 0:00:05]} 24. e3 {[%emt 0:00:39]} Nf5 {[%emt 0:00:13]} 25. Ke2 {[%emt 0:00:23]} Kg7 {[%emt 0:01:09]} 26. Rab1 {[%emt 0:00:17]} Ba3 {[%emt 0:00:30]} 27. Rc2 {[%emt 0:00:08]} Nb6 {[%emt 0:00:02]} 28. g4 {[%emt 0:00:49]} Ne7 {[%emt 0:01:02]} 29. Be1 {[%emt 0:00:26]} f5 {[%emt 0:01:43]} 30. gxf5 {[%emt 0:01:10]} gxf5 {[%emt 0:00:26]} 31. Ng5 {[%emt 0:00:02]} Bg8 {[%emt 0:00:01]} 32. Bg3 {[%emt 0:00:14]} Ng6 {[%emt 0:00:04]} 33. h4 {[%emt 0:00:46]} f4 {[%emt 0:00:22]} 34. exf4 {[%emt 0:00:05]} Nxf4+ {[%emt 0:00:02]} 35. Bxf4 {[%emt 0:00:01]} exf4 {[%emt 0:00:01]} 36. Bh3 {[%emt 0:00:09]} Nd5 {[%emt 0:00:31]} 37. Rg1 {[%emt 0:00:11]} Kh8 {[%emt 0:01:15]} 38. Nxd5 {[%emt 0:00:30]} Bxd5 {[%emt 0:00:07]} 39. Bf5 {[%emt 0:00:07]} Re8+ {[%emt 0:00:33]} 40. Be4 {[%emt 0:00:08]} Re7 {[%emt 0:00:43]} 41. Rg4 {[%emt 0:00:20]} Bd6 {[%emt 0:00:13]} 42. Rc1 {[%emt 0:00:19]} Bxa2 {[%emt 0:00:48]} 43. Ra1 {[%emt 0:00:02]} Bg8 {[%emt 0:00:25]} 44. Rxa7 {[%emt 0:00:03]} Bc5 {[%emt 0:00:05]} 45. Ra1 {[%emt 0:00:43]} h6 {[%emt 0:00:11]} 46. Nh3 {[%emt 0:00:07]} Be6 {[%emt 0:00:01]} 47. Nxf4 {[%emt 0:00:12]} Bxg4 {[%emt 0:00:24]} 48. Ng6+ {[%emt 0:00:01]} Kg7 {[%emt 0:00:11]} 49. Nxe7 {[%emt 0:00:10]} Bxe7 {[%emt 0:00:36]} 50. Rg1 {[%emt 0:00:39]} h5 {[%emt 0:00:32]} 51. fxg4 {[%emt 0:00:04]} Bc5 {[%emt 0:00:09]} 52. Rg2 {[%emt 0:00:10]} hxg4 {[%emt 0:00:03]} 53. Rxg4+ {[%emt 0:00:02]} Kf6 1/2-1/2